[Event "GER-ch Youth-U12 2024"]
[Site "Willingen"]
[Date "2024.05.24"]
[Round "8"]
[White "Zhang, Yibo"]
[Black "Fischermann, Simon"]
[Result "0-1"]
[ECO "C54"]
[WhiteElo "1988"]
[BlackElo "1789"]
[Annotator "ChessBase"]
[PlyCount "112"]
[EventDate "2022.06.05"]
[EventType "swiss"]
[EventRounds "9"]
[EventCountry "GER"]
[SourceTitle "playchess.com"]
[Source "ChessBase"]
[SourceQuality "1"]
[TimeControl "40/4500+30:900+30"]

1. e4 {[%emt 0:00:00]} e5 {[%emt 0:00:00]} 2. Nf3 {[%emt 0:00:00]} Nc6 {[%emt 0:00:00]} 3. Bc4 {[%emt 0:00:00]} Nf6 {[%emt 0:00:00]} 4. d3 {[%emt 0:00:00]} Bc5 {[%emt 0:00:00]} 5. c3 {[%emt 0:00:00]} d6 {[%emt 0:00:00]} 6. b4 {[%emt 0:00:00]} Bb6 {[%emt 0:00:00]} 7. a4 {[%emt 0:01:03]} a5 {[%emt 0:00:00]} 8. b5 {[%emt 0:00:00]} Ne7 {[%emt 0:00:00]} 9. Be3 {[%emt 0:00:00]} Bxe3 {[%emt 0:00:00]} 10. fxe3 {[%emt 0:00:00]} c6 {[%emt 0:00:00]} 11. bxc6 {[%emt 0:00:00]} bxc6 {[%emt 0:00:00]} 12. O-O {[%emt 0:00:00]} O-O {[%emt 0:00:00]} 13. Nbd2 {[%emt 0:10:31]} d5 {[%emt 0:03:59]} 14. exd5 {[%emt 0:15:00]} cxd5 {[%emt 0:00:02]} 15. Ba2 {[%emt 0:00:31]} Qc7 {[%emt 0:36:33]} 16. c4 {[%emt 0:11:29]} e4 {[%emt 0:00:33]} 17. dxe4 {[%emt 0:02:36]} dxe4 {[%emt 0:00:18]} 18. Ng5 {[%emt 0:03:26]} Qe5 {[%emt 0:03:13]} 19. Rxf6 {[%emt 0:02:37]} Qxf6 {[%emt 0:00:21]} 20. Ndxe4 {[%emt 0:00:49]} Qg6 {[%emt 0:00:38]} 21. Bb1 {[%emt 0:16:27]} f5 {[%emt 0:20:36]} 22. h4 {[%emt 0:19:33]} h6 {[%emt 0:03:33]} 23. h5 {[%emt 0:00:08]} Qc6 {[%emt 0:04:26]} 24. c5 {[%emt 0:00:08]} hxg5 {[%emt 0:00:09]} 25. Nxg5 {[%emt 0:00:19]} Qxc5 {[%emt 0:04:07]} 26. Ba2+ {[%emt 0:00:14]} Kh8 {[%emt 0:00:02]} 27. Nf7+ {[%emt 0:00:07]} Rxf7 {[%emt 0:00:05]} 28. Bxf7 {[%emt 0:00:17]} Qxe3+ {[%emt 0:00:12]} 29. Kh2 {[%emt 0:00:08]} Qe5+ {[%emt 0:02:21]} 30. Kh1 {[%emt 0:00:10]} Bb7 {[%emt 0:01:19]} 31. h6 {[%emt 0:00:29]} Qg3 {[%emt 0:01:10]} 32. hxg7+ {[%emt 0:00:08]} Kxg7 {[%emt 0:00:04]} 33. Qe2 {[%emt 0:01:27]} Qh4+ {[%emt 0:00:36]} 34. Kg1 {[%emt 0:00:18]} Qd4+ {[%emt 0:00:24]} 35. Kh2 {[%emt 0:00:14]} Rh8+ {[%emt 0:02:17]} 36. Bh5 {[%emt 0:00:08]} Qh4+ {[%emt 0:00:09]} 37. Kg1 {[%emt 0:00:04]} Rxh5 {[%emt 0:00:16]} 38. Ra3 {[%emt 0:00:30]} Qh1+ {[%emt 0:00:26]} 39. Kf2 {[%emt 0:00:02]} Qxg2+ {[%emt 0:00:10]} 40. Ke1 {[%emt 0:00:02]} Qxe2+ {[%emt 0:00:55]} 41. Kxe2 {[%emt 0:15:01]} Kf6 {[%emt 0:15:17]} 42. Re3 {[%emt 0:00:06]} f4 {[%emt 0:00:15]} 43. Rb3 {[%emt 0:00:28]} Rh2+ {[%emt 0:00:34]} 44. Kf1 {[%emt 0:00:09]} Be4 {[%emt 0:00:18]} 45. Kg1 {[%emt 0:00:31]} Rg2+ {[%emt 0:00:08]} 46. Kf1 {[%emt 0:00:09]} Nd5 {[%emt 0:00:11]} 47. Ke1 {[%emt 0:00:14]} Ne3 {[%emt 0:00:23]} 48. Rb6+ {[%emt 0:00:08]} Kg5 {[%emt 0:01:18]} 49. Rg6+ {[%emt 0:00:10]} Kh4 {[%emt 0:00:17]} 50. Rh6+ {[%emt 0:00:07]} Kg4 {[%emt 0:00:51]} 51. Rg6+ {[%emt 0:00:21]} Kf5 {[%emt 0:00:29]} 52. Rf6+ {[%emt 0:00:14]} Ke5 {[%emt 0:00:22]} 53. Re6+ {[%emt 0:00:10]} Kd5 {[%emt 0:01:36]} 54. Re5+ {[%emt 0:00:05]} Kc4 {[%emt 0:02:24]} 55. Rxe4+ {[%emt 0:00:19]} Kb3 {[%emt 0:00:10]} 56. Rb4+ {[%emt 0:01:19]} axb4 {[%emt 0:00:08]} 0-1

[Event "GER-ch Youth-U12 2024"]
[Site "Willingen"]
[Date "2024.05.24"]
[Round "8"]
[White "Li, Yunqi"]
[Black "Nezhyvenko, Mykhaylo"]
[Result "1/2-1/2"]
[ECO "B13"]
[WhiteElo "1940"]
[BlackElo "2075"]
[Annotator "RC"]
[PlyCount "40"]
[EventDate "2022.06.05"]
[EventType "swiss"]
[EventRounds "9"]
[EventCountry "GER"]
[SourceTitle "playchess.com"]
[Source "ChessBase"]
[SourceQuality "1"]
[TimeControl "40/4500+30:900+30"]

1. e4 {[%emt 0:00:00]} c6 {[%emt 0:00:00]} 2. d4 {[%emt 0:00:00]} d5 {[%emt 0:00:00]} 3. exd5 {[%emt 0:00:00]} cxd5 {[%emt 0:00:00]} 4. c4 {[%emt 0:00:00]} Nf6 {[%emt 0:00:00]} 5. Nc3 {[%emt 0:00:00]} Nc6 {[%emt 0:00:00]} 6. Bg5 {[%emt 0:00:00]} dxc4 {[%emt 0:00:00]} 7. d5 {[%emt 0:00:00]} Ne5 {[%emt 0:00:00]} 8. Qd4 {[%emt 0:00:00]} Ng6 {[%emt 0:00:00]} 9. Bxc4 {[%emt 0:00:00]} h6 {[%emt 0:00:00]} 10. Be3 {[%emt 0:00:32]} e5 {[%emt 0:00:51]} 11. dxe6 {[%emt 0:06:55]} Bxe6 {[%emt 0:00:12]} 12. Bxe6 {[%emt 0:08:31]} Qxd4 {[%emt 0:01:47]} 13. Bxd4 {[%emt 0:12:11]} fxe6 {[%emt 0:00:04]} 14. Nf3 {[%emt 0:00:30]} Bb4 {[%emt 0:02:50]} 15. O-O {[%emt 0:01:10]} Bxc3 {[%emt 0:01:26]} 16. Bxc3 {[%emt 0:01:50]} Kf7 {[%emt 0:00:10]} 17. Ne5+ {[%emt 0:01:01]} Nxe5 {[%emt 0:00:04]} 18. Bxe5 {[%emt 0:00:12]} Rhd8 {[%emt 0:00:13]} 19. Rac1 {[%emt 0:02:57]} Rac8 {[%emt 0:00:37]} 20. h3 {[%emt 0:00:42]} Nd5 {[%emt 0:00:22]} 1/2-1/2

[Event "GER-ch Youth-U12 2024"]
[Site "Willingen"]
[Date "2024.05.24"]
[Round "8"]
[White "Bundan, Edward"]
[Black "Sheng, Ming"]
[Result "0-1"]
[ECO "B11"]
[WhiteElo "1897"]
[BlackElo "2031"]
[Annotator "RC"]
[PlyCount "68"]
[EventDate "2022.06.05"]
[EventType "swiss"]
[EventRounds "9"]
[EventCountry "GER"]
[SourceTitle "playchess.com"]
[Source "ChessBase"]
[SourceQuality "1"]
[TimeControl "40/4500+30:900+30"]

1. e4 {[%emt 0:00:00]} c6 {[%emt 0:00:00]} 2. Nc3 {[%emt 0:00:00]} d5 {[%emt 0:00:00]} 3. Nf3 {[%emt 0:00:00]} Bg4 {[%emt 0:00:00]} 4. h3 {[%emt 0:00:00]} Bxf3 {[%emt 0:00:00]} 5. Qxf3 {[%emt 0:00:00]} e6 {[%emt 0:00:00]} 6. d3 {[%emt 0:00:00]} Nd7 {[%emt 0:00:00]} 7. a3 {[%emt 0:00:00]} Bc5 {[%emt 0:00:00]} 8. g3 {[%emt 0:00:00]} Ne7 {[%emt 0:00:00]} 9. Bg2 {[%emt 0:00:00]} O-O {[%emt 0:00:00]} 10. O-O {[%emt 0:00:00]} a5 {[%emt 0:00:00]} 11. Rb1 {[%emt 0:00:00]} a4 {[%emt 0:00:00]} 12. Qe2 {[%emt 0:00:00]} Qb6 {[%emt 0:00:00]} 13. Kh2 {[%emt 0:03:19]} d4 {[%emt 0:00:00]} 14. Na2 {[%emt 0:05:43]} Bxa3 {[%emt 0:03:54]} 15. bxa3 {[%emt 0:04:29]} Qxb1 {[%emt 0:01:06]} 16. Nb4 {[%emt 0:00:47]} Rae8 {[%emt 0:04:23]} 17. Qg4 {[%emt 0:31:09]} Ng6 {[%emt 0:04:27]} 18. h4 {[%emt 0:06:13]} c5 {[%emt 0:02:20]} 19. h5 {[%emt 0:01:36]} cxb4 {[%emt 0:03:00]} 20. hxg6 {[%emt 0:00:10]} fxg6 {[%emt 0:00:28]} 21. Qe2 {[%emt 0:05:13]} b3 {[%emt 0:03:43]} 22. cxb3 {[%emt 0:00:58]} Qxb3 {[%emt 0:00:48]} 23. f4 {[%emt 0:00:57]} e5 {[%emt 0:01:28]} 24. Bh3 {[%emt 0:00:35]} Nc5 {[%emt 0:02:00]} 25. Rd1 {[%emt 0:00:32]} Qb5 {[%emt 0:04:27]} 26. f5 {[%emt 0:01:52]} gxf5 {[%emt 0:00:42]} 27. Bxf5 {[%emt 0:00:24]} g6 {[%emt 0:02:02]} 28. Qg4 {[%emt 0:00:44]} Qc6 {[%emt 0:05:15]} 29. Bh6 {[%emt 0:02:24]} Rf7 {[%emt 0:00:58]} 30. Rc1 {[%emt 0:01:23]} b6 {[%emt 0:00:57]} 31. Rf1 {[%emt 0:05:48]} Nxd3 {[%emt 0:06:51]} 32. Kh3 {[%emt 0:03:32]} Nc5 {[%emt 0:00:55]} 33. Qg5 {[%emt 0:03:45]} Ne6 {[%emt 0:03:10]} 34. Qg4 {[%emt 0:00:45]} Ng7 {[%emt 0:00:23]} 0-1

[Event "GER-ch Youth-U12 2024"]
[Site "Willingen"]
[Date "2024.05.24"]
[Round "8"]
[White "Hoppe, Arthur"]
[Black "Levytskyi, Oleksandr"]
[Result "1-0"]
[ECO "C54"]
[WhiteElo "1859"]
[BlackElo "1467"]
[Annotator "NA RC"]
[PlyCount "49"]
[EventDate "2022.06.05"]
[EventType "swiss"]
[EventRounds "9"]
[EventCountry "GER"]
[SourceTitle "playchess.com"]
[Source "ChessBase"]
[SourceQuality "1"]
[TimeControl "40/4500+30:900+30"]

1. e4 {[%emt 0:00:00]} e5 {[%emt 0:00:00]} 2. Nf3 {[%emt 0:00:00]} Nc6 {[%emt 0:00:00]} 3. Bc4 {[%emt 0:00:00]} Bc5 {[%emt 0:00:00]} 4. c3 {[%emt 0:00:00]} Nf6 {[%emt 0:00:00]} 5. d3 {[%emt 0:00:00]} O-O {[%emt 0:00:00]} 6. O-O {[%emt 0:00:00]} h6 {[%emt 0:00:00]} 7. a4 {[%emt 0:00:00] C54: Giuoco Piano: 4 c3 Nf6, main lines with 5 d4 and 5 d3.} d5 {[%emt 0:00:00]} 8. exd5 {[%emt 0:00:00]} Nxd5 {[%emt 0:00:00]} 9. Re1 {[%emt 0:00:00]} Nb6 {[%emt 0:00:00]} 10. Ba2 {[%emt 0:00:00]} a5 {[%emt 0:00:26]} 11. Be3 {[%emt 0:00:00]} Bd6 {[%emt 0:04:47]} 12. Bxb6 {[%emt 0:00:00]} cxb6 {[%emt 0:00:08]} 13. h3 {[%emt 0:00:00]} Qf6 {[%emt 0:08:00]} 14. Nbd2 {[%emt 0:12:11]} Bc7 {[%emt 0:03:40]} 15. Ne4 {[%emt 0:03:26]} Qe7 {[%emt 0:06:17]} 16. d4 {[%emt 0:10:42]} exd4 {[%emt 0:09:32] [#]} 17. Neg5 {[%emt 0:13:39]} Qd8 $2 {[%emt 0:06:44]} (17... Qf6 $1 $11 18. Ne4 Qf4) 18. Nxf7 {[%emt 0:02:09]} Rxf7 {[%emt 0:00:43]} 19. Qb3 {[%emt 0:00:10]} Be6 {[%emt 0:11:55]} 20. Qxe6 {[%emt 0:00:18]} Qf6 {[%emt 0:00:33]} 21. Qxf6 {[%emt 0:00:13]} gxf6 $18 {[%emt 0:00:08]} 22. Nxd4 {[%emt 0:00:40]} Nxd4 {[%emt 0:01:13]} 23. Re7 {[%emt 0:00:13]} Raf8 {[%emt 0:10:13]} 24. cxd4 {[%emt 0:00:09]} Bd8 {[%emt 0:00:20]} 25. Rd7 {[%emt 0:00:18]} 1-0

[Event "GER-ch Youth-U12 2024"]
[Site "Willingen"]
[Date "2024.05.24"]
[Round "8"]
[White "Junge, Mattheo Gabriel"]
[Black "Marynychenko, Yehor"]
[Result "0-1"]
[ECO "B30"]
[WhiteElo "1817"]
[BlackElo "1896"]
[Annotator "NA RC"]
[PlyCount "128"]
[EventDate "2022.06.05"]
[EventType "swiss"]
[EventRounds "9"]
[EventCountry "GER"]
[SourceTitle "playchess.com"]
[Source "ChessBase"]
[SourceQuality "1"]
[TimeControl "40/4500+30:900+30"]

1. e4 {[%emt 0:00:00]} c5 {[%emt 0:00:00]} 2. Nf3 {[%emt 0:00:00]} Nc6 {[%emt 0:00:00]} 3. Bb5 {[%emt 0:00:00]} Nd4 {[%emt 0:00:00]} 4. Nxd4 {[%emt 0:00:00]} cxd4 {[%emt 0:00:00]} 5. O-O {[%emt 0:00:00]} a6 {[%emt 0:00:00]} 6. Bc4 {[%emt 0:00:00] B30: Sicilian: 2...Nc6 3 Bb5, lines without ...g6.} e6 {[%emt 0:00:00]} 7. d3 {[%emt 0:00:00]} d6 {[%emt 0:00:00]} 8. a4 {[%emt 0:00:00]} Nf6 {[%emt 0:00:00]} 9. Bb3 {[%emt 0:00:00]} Be7 {[%emt 0:00:00]} 10. f4 {[%emt 0:00:00]} O-O {[%emt 0:00:00]} 11. Nd2 {[%emt 0:00:00]} Nd7 {[%emt 0:09:43]} 12. Nf3 {[%emt 0:00:00]} Bf6 {[%emt 0:00:56]} 13. a5 {[%emt 0:06:03]} Nc5 {[%emt 0:02:27]} 14. Bd2 {[%emt 0:04:09]} Nxb3 {[%emt 0:01:06]} 15. cxb3 {[%emt 0:00:04]} Bd7 {[%emt 0:06:38]} 16. Bb4 {[%emt 0:02:28]} Bb5 {[%emt 0:00:40]} 17. Kh1 {[%emt 0:02:58]} ({White should try} 17. g4 $11) 17... Re8 {[%emt 0:01:49]} 18. e5 {[%emt 0:03:49]} dxe5 {[%emt 0:02:13]} 19. fxe5 {[%emt 0:00:04]} Be7 {[%emt 0:00:09]} 20. Bxe7 {[%emt 0:00:46]} Rxe7 {[%emt 0:00:13]} 21. Qe2 {[%emt 0:05:08]} Qd5 {[%emt 0:02:54]} 22. Nd2 {[%emt 0:00:40]} Bc6 {[%emt 0:04:22]} 23. Nc4 {[%emt 0:06:46]} Rf8 {[%emt 0:05:30]} 24. Rf4 {[%emt 0:04:40]} (24. b4 $11) 24... f5 {[%emt 0:05:29]} 25. exf6 {[%emt 0:06:14]} gxf6 {[%emt 0:00:05]} 26. Raf1 {[%emt 0:01:00]} Rg7 {[%emt 0:00:42]} 27. Rg4 {[%emt 0:07:16]} Rff7 {[%emt 0:01:51]} 28. Rff4 {[%emt 0:04:08]} h5 {[%emt 0:06:04]} 29. Rxd4 {[%emt 0:11:08]} hxg4 {[%emt 0:15:05]} 30. Rxd5 {[%emt 0:00:13]} exd5 {[%emt 0:00:28]} 31. Nd6 {[%emt 0:04:53]} Re7 {[%emt 0:00:15]} 32. Qf2 {[%emt 0:00:29]} Re6 {[%emt 0:00:29]} 33. Nf5 {[%emt 0:00:34]} Rg5 $1 {[%emt 0:01:43]} 34. Nd4 {[%emt 0:01:05]} Re8 {[%emt 0:00:19]} 35. g3 {[%emt 0:00:47]} Kf7 {[%emt 0:01:15]} 36. b4 {[%emt 0:05:22]} Rge5 {[%emt 0:02:35]} 37. Qf4 {[%emt 0:03:13]} Bb5 {[%emt 0:00:50]} 38. Qxg4 {[%emt 0:02:51]} Bxd3 {[%emt 0:00:39]} 39. Kg2 {[%emt 0:00:17]} Bg6 {[%emt 0:00:34]} 40. h4 {[%emt 0:02:30]} (40. Kf2 $16) 40... R8e7 {[%emt 0:02:04]} 41. Qd1 {[%emt 0:20:04]} Re1 {[%emt 0:16:15]} 42. Qb3 {[%emt 0:00:52]} Be4+ {[%emt 0:01:52]} 43. Kf2 {[%emt 0:00:00]} Rh1 {[%emt 0:00:00]} 44. Qc3 {[%emt 0:00:00]} Rd1 {[%emt 0:00:00]} 45. Ke2 {[%emt 0:00:00]} Rd3 {[%emt 0:00:00]} 46. Qxd3 {[%emt 0:00:00]} Bxd3+ {[%emt 0:00:00]} 47. Kxd3 {[%emt 0:00:00]} Re4 {[%emt 0:00:00]} 48. b5 {[%emt 0:00:00]} axb5 {[%emt 0:00:00]} 49. b3 $19 {[%emt 0:00:00]} (49. Nxb5 {was forced.} Ke6 50. Nd4+ Ke5 51. Nf3+ Kd6 52. Nd4) 49... Rg4 {[%emt 0:00:00]} 50. Nxb5 {[%emt 0:00:00]} Rxg3+ {[%emt 0:00:00]} 51. Kd4 {[%emt 0:00:00]} Rxb3 {[%emt 0:00:00]} 52. Kc5 {[%emt 0:00:00]} f5 {[%emt 0:00:00]} 53. Nd4 {[%emt 0:00:00]} Ra3 {[%emt 0:00:00]} 54. Kb4 {[%emt 0:00:00]} Ra1 {[%emt 0:00:00]} 55. Nxf5 {[%emt 0:00:00]} Ke6 {[%emt 0:00:00]} 56. Nd4+ {[%emt 0:00:00]} Ke5 {[%emt 0:00:00]} 57. Nf3+ {[%emt 0:00:00]} Ke4 {[%emt 0:00:00]} 58. Nd2+ {[%emt 0:00:00]} Ke3 {[%emt 0:00:00]} 59. Nb3 {[%emt 0:00:00]} Rh1 {[%emt 0:00:00]} 60. Kb5 {[%emt 0:00:00]} Rb1 {[%emt 0:00:00]} 61. Kb4 {[%emt 0:00:00]} d4 {[%emt 0:00:00]} 62. h5 {[%emt 0:00:00]} d3 {[%emt 0:00:00]} 63. h6 {[%emt 0:00:00]} d2 {[%emt 0:00:00]} 64. h7 {[%emt 0:00:00]} Rh1 {[%emt 0:00:00]} 0-1

[Event "GER-ch Youth-U12 2024"]
[Site "Willingen"]
[Date "2024.05.24"]
[Round "8"]
[White "Peglau, Paul David"]
[Black "Rodriguez Klasen, Ennio"]
[Result "1/2-1/2"]
[ECO "B25"]
[WhiteElo "1806"]
[BlackElo "1802"]
[Annotator "NA RC"]
[PlyCount "107"]
[EventDate "2022.06.05"]
[EventType "swiss"]
[EventRounds "9"]
[EventCountry "GER"]
[SourceTitle "playchess.com"]
[Source "ChessBase"]
[SourceQuality "1"]
[TimeControl "40/4500+30:900+30"]

1. e4 {[%emt 0:00:00]} c5 {[%emt 0:00:00]} 2. Nf3 {[%emt 0:00:00]} Nc6 {[%emt 0:00:00]} 3. g3 {[%emt 0:00:00]} d6 {[%emt 0:00:00]} 4. Bg2 {[%emt 0:00:00]} Nf6 {[%emt 0:00:00]} 5. d3 {[%emt 0:00:00]} g6 {[%emt 0:00:00]} 6. O-O {[%emt 0:00:00]} Bg7 {[%emt 0:00:00]} 7. Nc3 {[%emt 0:00:00]} O-O {[%emt 0:00:00]} 8. h3 {[%emt 0:00:00] 8.Re1 injects fresh life into this line.} a6 {[%emt 0:00:00]} 9. a4 {[%emt 0:00:00]} Rb8 {[%emt 0:00:00]} 10. Nd2 {[%emt 0:05:14] B25: Closed Sicilian: 3 g3, lines without early Be3.} Nh5 {[%emt 0:05:24]} 11. Kh2 {[%emt 0:13:25]} Nd4 $146 {[%emt 0:12:42]} ({Predecessor:} 11... e5 12. Nc4 Be6 13. Nd5 b5 14. axb5 axb5 15. Ra6 bxc4 16. Rxc6 Bxd5 17. exd5 cxd3 18. Qxd3 {1-0 Lupu,M (2430)-Grawe,P Staufer op 06th 1994 (3)}) 12. f4 {[%emt 0:05:47]} e5 {[%emt 0:13:07]} 13. Nf3 {[%emt 0:07:18]} exf4 {[%emt 0:08:31]} 14. gxf4 {[%emt 0:03:57]} Nxf3+ {[%emt 0:06:08]} 15. Qxf3 {[%emt 0:08:36]} f5 {[%emt 0:08:14]} 16. Ne2 {[%emt 0:10:53]} Bd7 {[%emt 0:06:27]} 17. Ng3 {[%emt 0:06:20]} Nxg3 {[%emt 0:02:31]} 18. Qxg3 {[%emt 0:00:42]} Bc6 {[%emt 0:02:10]} 19. c3 {[%emt 0:06:48]} Qd7 {[%emt 0:01:15]} 20. a5 {[%emt 0:02:18]} Rbe8 {[%emt 0:03:07]} 21. Re1 {[%emt 0:00:31]} c4 {[%emt 0:02:39]} 22. Bd2 {[%emt 0:01:37]} cxd3 {[%emt 0:01:52]} 23. Qxd3 {[%emt 0:00:13]} fxe4 {[%emt 0:00:19]} 24. Bxe4 {[%emt 0:01:12]} d5 {[%emt 0:02:09]} 25. Bg2 {[%emt 0:01:17]} Qd6 {[%emt 0:02:39]} 26. Rxe8 {[%emt 0:04:22]} Rxe8 {[%emt 0:00:01]} 27. Rf1 {[%emt 0:01:03]} Rd8 {[%emt 0:01:38]} 28. Qg3 {[%emt 0:01:32]} Rf8 {[%emt 0:01:24]} 29. Kh1 {[%emt 0:03:19]} d4 {[%emt 0:03:19]} 30. cxd4 {[%emt 0:01:02]} Qxd4 {[%emt 0:02:40]} 31. Bc3 {[%emt 0:00:39]} Bxg2+ {[%emt 0:01:19]} 32. Qxg2 {[%emt 0:00:05]} Qd7 {[%emt 0:00:24]} 33. Bxg7 {[%emt 0:00:26]} Qxg7 {[%emt 0:01:14]} 34. Qd2 {[%emt 0:01:57]} Qc7 {[%emt 0:00:38]} 35. b4 {[%emt 0:00:59]} Qc4 {[%emt 0:00:26]} 36. Rf2 {[%emt 0:01:09]} Qc6+ {[%emt 0:00:34]} 37. Kh2 {[%emt 0:00:10]} Qc7 {[%emt 0:00:25]} 38. Kg3 {[%emt 0:01:00]} Rd8 {[%emt 0:00:37]} 39. Qc2 {[%emt 0:00:34]} Qxc2 {[%emt 0:00:29]} 40. Rxc2 {[%emt 0:00:01]} Rd7 {[%emt 0:00:25]} 41. Rc5 {[%emt 0:00:00]} Kf7 {[%emt 0:00:00]} 42. b5 {[%emt 0:00:00]} axb5 {[%emt 0:00:00]} 43. Rxb5 {[%emt 0:00:00]} h6 {[%emt 0:00:00]} 44. Kg4 {[%emt 0:00:00]} Rc7 {[%emt 0:03:36]} 45. h4 {[%emt 0:00:00]} Kf6 {[%emt 0:04:32]} 46. h5 {[%emt 0:02:29]} gxh5+ $11 {[%emt 0:02:25]} 47. Kxh5 {[%emt 0:01:39]} Rc4 {[%emt 0:01:44]} 48. Kg4 {[%emt 0:02:17]} Rc7 {[%emt 0:00:49]} 49. Rb6+ {[%emt 0:02:15]} Kg7 {[%emt 0:00:29]} 50. f5 {[%emt 0:01:28]} Rd7 {[%emt 0:02:25]} 51. f6+ {[%emt 0:03:43]} Kf7 {[%emt 0:01:13]} 52. Kh5 {[%emt 0:01:19]} Rd5+ {[%emt 0:00:38]} 53. Kxh6 {[%emt 0:00:07]} Rxa5 {[%emt 0:00:13]} 54. Rxb7+ {[%emt 0:00:09]} 1/2-1/2

[Event "GER-ch Youth-U12 2024"]
[Site "Willingen"]
[Date "2024.05.24"]
[Round "8"]
[White "Vartanian, Roman"]
[Black "Zimmer, Tim"]
[Result "0-1"]
[ECO "D58"]
[WhiteElo "1797"]
[BlackElo "1772"]
[Annotator "NA RC"]
[PlyCount "100"]
[EventDate "2022.06.05"]
[EventType "swiss"]
[EventRounds "9"]
[EventCountry "GER"]
[SourceTitle "playchess.com"]
[Source "ChessBase"]
[SourceQuality "1"]
[TimeControl "40/4500+30:900+30"]

1. Nf3 {[%emt 0:00:00]} d5 {[%emt 0:00:00]} 2. d4 {[%emt 0:00:00]} Nf6 {[%emt 0:00:00]} 3. c4 {[%emt 0:00:00]} e6 {[%emt 0:00:00]} 4. Nc3 {[%emt 0:00:00]} Be7 {[%emt 0:00:00]} 5. Bg5 {[%emt 0:00:00]} h6 {[%emt 0:00:00]} 6. Bh4 {[%emt 0:00:00]} O-O {[%emt 0:00:00]} 7. e3 {[%emt 0:00:00]} b6 {[%emt 0:00:00]} 8. Be2 {[%emt 0:00:00]} Bb7 {[%emt 0:00:00]} 9. O-O {[%emt 0:00:20]} Nbd7 {[%emt 0:00:34]} 10. Qb3 {[%emt 0:00:00]} c5 {[%emt 0:02:19]} 11. cxd5 {[%emt 0:00:00]} Nxd5 {[%emt 0:01:48]} 12. Bg3 {[%emt 0:00:00]} Rc8 {[%emt 0:06:47]} 13. Rfd1 {[%emt 0:00:00]} cxd4 {[%emt 0:15:05]} 14. exd4 {[%emt 0:03:04]} N7f6 {[%emt 0:02:57]} 15. Rac1 {[%emt 0:01:18]} Nxc3 {[%emt 0:07:17]} 16. bxc3 {[%emt 0:00:08]} Bd6 {[%emt 0:03:26]} 17. Ne5 {[%emt 0:03:42]} Qe7 {[%emt 0:04:16]} 18. f3 {[%emt 0:24:23]} Nh5 {[%emt 0:05:52]} 19. Bf2 {[%emt 0:01:08]} Nf4 {[%emt 0:04:25]} 20. Bf1 {[%emt 0:10:16]} Bxe5 {[%emt 0:01:39]} 21. dxe5 {[%emt 0:00:05]} Qg5 {[%emt 0:00:45]} 22. Kh1 {[%emt 0:03:56]} Qxe5 {[%emt 0:01:51]} 23. c4 {[%emt 0:00:49]} Bc6 {[%emt 0:05:45]} 24. c5 {[%emt 0:06:25]} Bd5 {[%emt 0:02:54]} 25. Qa4 {[%emt 0:00:00]} bxc5 {[%emt 0:04:39]} 26. Qxa7 {[%emt 0:02:28]} Ra8 {[%emt 0:02:26]} 27. Qxc5 {[%emt 0:00:18]} Rxa2 {[%emt 0:00:32]} 28. Bg3 {[%emt 0:04:46]} Qf6 {[%emt 0:01:47]} 29. Rc2 {[%emt 0:11:19]} Rfa8 {[%emt 0:01:39]} 30. Bxf4 {[%emt 0:02:13]} Qxf4 {[%emt 0:00:57]} 31. Bd3 {[%emt 0:01:07]} g6 {[%emt 0:02:43]} 32. Rxa2 {[%emt 0:00:50]} Rxa2 {[%emt 0:00:58]} 33. Bc2 {[%emt 0:02:19]} Qe5 {[%emt 0:02:44]} 34. Be4 {[%emt 0:02:26]} Ra1 {[%emt 0:02:30]} 35. Rg1 {[%emt 0:01:23]} Rxg1+ {[%emt 0:00:52]} 36. Kxg1 {[%emt 0:00:11]} Qa1+ {[%emt 0:00:23]} 37. Kf2 {[%emt 0:00:05]} Qb2+ {[%emt 0:00:14]} 38. Kg3 {[%emt 0:02:45]} Qb8+ {[%emt 0:00:49]} 39. Kh3 {[%emt 0:02:29]} Bxe4 {[%emt 0:00:58]} 40. fxe4 {[%emt 0:00:03]} Qf4 {[%emt 0:00:30]} 41. Qc4 {[%emt 0:17:20]} g5 {[%emt 0:00:00]} 42. g3 {[%emt 0:00:00]} Qf3 {[%emt 0:00:00]} 43. e5 {[%emt 0:00:00]} Qf5+ {[%emt 0:00:00]} 44. Kg2 {[%emt 0:00:00]} Qxe5 {[%emt 0:00:00]} 45. h4 {[%emt 0:00:00]} Qd5+ {[%emt 0:00:00]} 46. Qxd5 {[%emt 0:00:00]} exd5 {[%emt 0:00:00]} 47. Kf3 {[%emt 0:00:00]} Kg7 {[%emt 0:00:00]} 48. h5 {[%emt 0:00:00]} Kf6 {[%emt 0:00:00]} 49. g4 {[%emt 0:00:00]} Ke5 {[%emt 0:00:00]} 50. Ke3 {[%emt 0:00:00]} d4+ {[%emt 0:00:00]} 0-1